[Event "FRA-ch Teams Top 16-Haute 2022"]
[Site "Chartres"]
[Date "2022.06.19"]
[Round "11.31"]
[White "Movsesian, Sergei"]
[Black "Bellahcene, Bilel"]
[Result "1-0"]
[ECO "B51"]
[WhiteElo "2600"]
[BlackElo "2521"]
[Annotator "TA"]
[PlyCount "151"]
[EventDate "2022.06.16"]
[EventType "team-tourn"]
[EventCountry "FRA"]
[SourceTitle "playchess.com"]
[Source "ChessBase"]
[SourceQuality "1"]
[TimeControl "40/5400+30:1800+30"]

{[%evp 9,151,8,13,16,24,15,29,25,33,24,29,20,16,16,28,18,21,27,37,12,1,7,37,22,13,20,5,0,24,7,13,0,12,4,52,25,17,0,30,0,37,0,25,0,8,0,0,-11,0,-7,0,0,0,8,57,31,26,30,78,47,48,47,56,57,45,23,38,33,43,41,39,4,47,39,82,55,87,64,132,122,106,83,81,85,263,279,286,285,266,280,300,302,297,176,198,180,198,116,94,54,147,144,184,148,162,147,148,133,152,154,138,150,149,151,306,299,270,131,161,84,124,122,110,132,129,126,120,87,78,97,88,89,81,70,89,84,83,60,85,85,83,80,640,626]} 1. e4 {[%emt 0:00:04]} c5 {[%emt 0:01:00]} 2. Nf3 {[%emt 0:00:17]} d6 {[%emt 0:00:02]} 3. Bb5+ {[%emt 0:00:33]} Nd7 {[%emt 0:00:03]} 4. a4 {[%emt 0:00:58]} Ngf6 {[%emt 0:00:12]} 5. Nc3 {[%emt 0:00:23]} a6 {[%emt 0:00:04]} 6. Be2 {[%emt 0:01:02] B51: Sicilian: Moscow Variation (3 Bb5+) without 3...Bd7.} b6 {[%emt 0:00:02]} 7. d4 {[%emt 0:00:31]} cxd4 {[%emt 0:00:04]} 8. Qxd4 {[%emt 0:00:11] White has an edge.} Bb7 {[%emt 0:00:03]} 9. O-O {[%emt 0:00:50]} e6 {[%emt 0:01:18]} 10. Rd1 {[%emt 0:03:23]} Qc7 {[%emt 0:00:19]} 11. Be3 {[%emt 0:01:07]} Ng4 {[%emt 0:00:08]} 12. Bg5 {[%emt 0:02:07]} h6 {[%emt 0:00:02]} 13. Bh4 {[%emt 0:00:37]} Nge5 {[%emt 0:00:06]} 14. Qe3 {[%emt 0:02:24]} Ng4 {[%emt 0:01:57]} 15. Qd2 {[%emt 0:02:13] [#]} Be7 $146 {[%emt 0:00:08]} ({Predecessor:} 15... Nge5 16. h3 Nxf3+ 17. Bxf3 Ne5 18. Be2 g5 19. Bg3 Be7 {1-0 (38) Fecker,N (2308)-Baenziger,F (2400) Magglingen 2021}) 16. Bxe7 {[%emt 0:03:05]} Kxe7 {[%emt 0:00:03]} 17. Nd4 {[%emt 0:03:06]} Ngf6 {[%emt 0:01:52]} 18. Qe3 {[%emt 0:02:26][%cal Oa4a5]} Rhb8 {[%emt 0:08:32]} 19. Rd2 {[%emt 0:03:56]} (19. a5 {looks sharper.} bxa5 20. Nb3 Bc6 21. Nxa5 Rxb2 22. Nb3) 19... Kf8 {[%emt 0:05:32]} 20. Rad1 {[%emt 0:04:40]} Nc5 {[%emt 0:32:34]} 21. Bf3 {[%emt 0:06:20]} Ne8 {[%emt 0:03:33]} (21... Re8 $11 {is superior.}) 22. g3 {[%emt 0:09:25]} Nd7 {[%emt 0:06:00]} 23. Bg2 {[%emt 0:01:14]} Kg8 {[%emt 0:07:52]} (23... Ne5 $5 {[%cal Re5c4]}) 24. h3 {[%emt 0:05:31]} Nf8 25. Kh2 {[%emt 0:46:37]} Rc8 {[%emt 0:31:34]} 26. Nb3 {[%emt 0:00:00]} Bc6 {[%emt 0:00:00]} 27. Rd4 {[%emt 0:00:00]} Nd7 {[%emt 0:00:00]} 28. Rc4 {[%emt 0:00:00]} Ne5 {[%emt 0:00:00]} 29. Rb4 {[%emt 0:00:00]} Rab8 {[%emt 0:00:00]} 30. Bf1 {[%emt 0:00:00]} a5 {[%emt 0:00:00]} 31. Rbd4 {[%emt 0:00:00]} Qe7 {[%emt 0:00:00]} (31... Nf6 $11 32. Kg1 d5) 32. f4 {[%emt 0:00:00]} Nd7 {[%emt 0:00:00]} 33. R4d2 {[%emt 0:00:00]} Rd8 {[%emt 0:00:00]} (33... e5 $11 {was preferrable.}) 34. Nd4 {[%emt 0:00:00]} (34. Bb5 $5 {[%cal Rb5c6]} Ba8 35. e5 $16) 34... Ba8 {[%emt 0:00:00]} 35. Bg2 {[%emt 0:00:00]} Nc5 {[%emt 0:00:00]} 36. b3 {[%emt 0:00:00]} Rd7 {[%emt 0:00:10]} 37. Qe2 {[%emt 0:00:00]} Rc8 {[%emt 0:00:40][%cal Oc5b3]} 38. Ndb5 {[%emt 0:00:00]} Rcd8 {[%emt 0:00:36]} 39. Qe3 {[%emt 0:00:00]} Bb7 {[%emt 0:04:50]} 40. Na3 {[%emt 0:00:36] Threatening Nc4.} Ba6 {[%emt 0:00:42]} (40... Bxe4 {feels hotter.} 41. Nxe4 Nxe4 42. Bxe4 d5) 41. Ncb5 {[%emt 0:31:28]} Rb8 {[%emt 0:07:50]} 42. Nd4 {[%emt 0:00:00] Black must now prevent Nc6.} Rc8 {[%emt 0:01:14] Inhibits Nc6.} 43. Nab5 {[%emt 0:00:00]} Kh8 {[%emt 0:12:18]} (43... Bb7 $14) 44. e5 $16 {[%emt 0:00:00] Strongly threatening Nc6.} d5 {[%emt 0:01:03]} 45. c4 {[%emt 0:00:00] Threatens to win with cxd5.} Bb7 {[%emt 0:06:07]} 46. Na7 $36 {[%emt 0:00:00][%mdl 2048] White is in control.} Ra8 {[%emt 0:00:12]} (46... Rcc7 $16 {keeps fighting.}) 47. Nac6 $18 {[%emt 0:00:00]} Qf8 {[%emt 0:00:17]} 48. cxd5 {[%emt 0:00:00]} exd5 {[%emt 0:00:03]} 49. e6 {[%emt 0:00:00]} Rd6 {[%emt 0:02:49][%cal Rc5e6]} 50. e7 {[%emt 0:00:00]} Qg8 {[%emt 0:00:04]} 51. Nd8 {[%emt 0:00:00]} (51. Ne5 $142) 51... Raxd8 {[%emt 0:01:14]} 52. exd8=Q Rxd8 53. Qe7 {[%emt 0:00:13]} (53. Nf5 $18) 53... Rd7 $16 {[%emt 0:01:04]} 54. Qe5 {[%emt 0:01:12] White is much more active.} f6 {[%emt 0:02:22]} ({Better is} 54... Nd6 $1 $14) 55. Qb8 {[%emt 0:11:31] And now Qa7 would win.} Nd6 {[%emt 0:00:52]} 56. Qxg8+ {[%emt 0:00:00]} Kxg8 {[%emt 0:00:01]} 57. Re2 {[%emt 0:00:00]} Nde4 {[%emt 0:00:25]} 58. Re3 {[%emt 0:00:00]} Kf7 {[%emt 0:01:01]} 59. g4 {[%emt 0:00:00]} g6 {[%emt 0:00:21]} 60. Kg1 {[%emt 0:00:00]} Ba6 {[%emt 0:00:44]} 61. f5 {[%emt 0:00:00]} Bb7 $2 {[%emt 0:00:29]} (61... Bc8 $16 {is a better defense.} 62. fxg6+ Kxg6) 62. fxg6+ $18 {[%emt 0:00:00]} Kxg6 {[%emt 0:00:02] [#]} 63. Ne2 {[%emt 0:00:00]} (63. Ne6 $1 $18 {[%cal Re6f8][%mdl 512]} Re7 64. Nf4+ Kf7 65. Nxd5 Bxd5 66. Rxd5) 63... f5 $16 {[%emt 0:00:32]} 64. Rd4 {[%emt 0:00:00]} (64. gxf5+ $18 Kxf5 65. Rf3+ Ke5 66. Nd4) 64... Kg5 {[%emt 0:00:51]} 65. gxf5 {[%emt 0:02:05]} Kxf5 {[%emt 0:00:02]} 66. b4 {[%emt 0:00:17]} axb4 {[%emt 0:00:19]} 67. Rxb4 {[%emt 0:00:03]} Rd6 {[%emt 0:00:44]} 68. Nd4+ {[%emt 0:00:31]} Ke5 {[%emt 0:00:21]} 69. Rf3 {[%emt 0:00:22][%csl Gd4][%cal Rf3f5]} Bc8 {[%emt 0:00:28] Prevents Rf5+.} 70. Rf8 {[%emt 0:00:47]} Bd7 {[%emt 0:00:07]} 71. Nf3+ {[%emt 0:00:34]} Ke6 {[%emt 0:00:06]} 72. Rh8 {[%emt 0:00:07]} Kf5 {[%emt 0:00:38]} 73. Rd8 {[%emt 0:01:33]} Kf4 {[%emt 0:01:25]} 74. Rf8+ {[%emt 0:01:17]} Ke3 {[%emt 0:00:31]} 75. Ne5 {[%emt 0:00:20] Hoping for Bxe4.} Bxa4 $2 {[%emt 0:00:53][%mdl 8192]} (75... Kd2 $16) 76. Bxe4 {[%emt 0:00:31] Weighted Error Value: White=0.13 (very precise) /Black=0.16 (very precise)} 1-0

[Event "FRA-ch Teams Top 16-Haute 2022"]
[Site "Chartres"]
[Date "2022.06.19"]
[Round "11.32"]
[White "Sebag, Marie"]
[Black "Guichard, Pauline"]
[Result "1/2-1/2"]
[ECO "C72"]
[WhiteElo "2472"]
[BlackElo "2377"]
[Annotator "TA"]
[PlyCount "74"]
[EventDate "2022.06.16"]
[EventType "team-tourn"]
[EventCountry "FRA"]
[SourceTitle "playchess.com"]
[Source "ChessBase"]
[SourceQuality "1"]
[TimeControl "40/5400+30:1800+30"]

{[%evp 18,74,29,25,31,0,8,4,8,8,16,10,10,2,36,6,14,0,0,0,7,5,3,5,1,0,2,0,0,0,0,0,0,0,0,0,0,0,0,0,0,0,0,0,33,0,0,0,0,0,0,0,0,0,0,0,0,0,0]} 1. e4 {[%emt 0:10:31]} e5 {[%emt 0:00:07]} 2. Nf3 {[%emt 0:00:05]} Nc6 {[%emt 0:00:07]} 3. Bb5 {[%emt 0:00:03]} a6 {[%emt 0:00:10]} 4. Ba4 {[%emt 0:00:05]} d6 {[%emt 0:00:11]} 5. O-O {[%emt 0:07:19]} Bd7 {[%emt 0:00:26]} 6. d4 {[%emt 0:01:46]} Nxd4 {[%emt 0:00:41]} 7. Bxd7+ {[%emt 0:00:24]} Qxd7 {[%emt 0:00:06]} 8. Nxd4 {[%emt 0:00:06]} exd4 {[%emt 0:00:07]} 9. Qxd4 {[%emt 0:00:03]} Nf6 {[%emt 0:00:22] The main line 9...Nf6 scores better than 9...Ne7.} 10. Nc3 {[%emt 0:09:20]} Be7 $1 {[%emt 0:00:44] C72: Ruy Lopez: Deferred Steinitz: 5 0-0.} 11. b3 {[%emt 0:04:10]} O-O {[%emt 0:01:06]} 12. Bb2 {[%emt 0:00:13]} c6 {[%emt 0:01:56] Prevents Nd5.} 13. Rad1 {[%emt 0:06:53]} Qe6 {[%emt 0:05:00] [#] Prevents e5.} 14. Rfe1 $146 {[%emt 0:04:10]} ({Predecessor:} 14. Rd3 Rfe8 15. f3 Rad8 16. Kh1 d5 17. exd5 cxd5 18. Qf2 Bd6 19. Nd1 Be5 20. Bxe5 Qxe5 {1-0 (118) Bosiocic,M (2613)-Stevic,H (2586) Bjelovar 2019}) 14... Rad8 {[%emt 0:06:48]} 15. Ne2 {[%emt 0:03:10]} Rfe8 {[%emt 0:22:58]} 16. Ng3 {[%emt 0:13:50]} d5 {[%emt 0:12:17]} 17. exd5 {[%emt 0:01:16]} Qxd5 {[%emt 0:00:09]} 18. Qxd5 {[%emt 0:00:19]} Nxd5 {[%emt 0:02:25][%cal Bf6d5,Bd5c7,Bc7e6][%mdl 32]} 19. c4 {[%emt 0:09:05]} Nc7 {[%emt 0:01:26]} 20. Rxd8 {[%emt 0:03:00]} Bxd8 {[%emt 0:01:10]} 21. Rd1 {[%emt 0:00:35]} Ne6 {[%emt 0:01:03]} 22. Kf1 {[%emt 0:05:07]} Bc7 {[%emt 0:09:31]} 23. Nf5 {[%emt 0:00:40]} Rd8 {[%emt 0:04:31] Against Rd7} 24. Rxd8+ {[%emt 0:00:55]} Bxd8 $11 {[%emt 0:00:04][%mdl 4096] Endgame KBN-KBN} 25. g3 {[%emt 0:01:01]} f6 {[%emt 0:05:01]} 26. Ke2 {[%emt 0:01:56]} Bc7 {[%emt 0:00:46]} 27. Ba3 {[%emt 0:01:46]} g6 {[%emt 0:01:24]} 28. Nd6 {[%emt 0:01:38]} Bxd6 {[%emt 0:10:01]} 29. Bxd6 {[%emt 0:00:05] KB-KN} h5 {[%emt 0:00:40]} 30. Kd3 {[%emt 0:02:30]} f5 {[%emt 0:00:40]} 31. h4 {[%emt 0:02:16]} Kf7 {[%emt 0:00:07] The position is equal.} 32. Ke3 {[%emt 0:02:15]} Ke8 {[%emt 0:00:17]} 33. Be5 {[%emt 0:00:55]} Kd7 {[%emt 0:01:48]} 34. f3 {[%emt 0:00:20]} Ke7 {[%emt 0:00:49]} 35. Kd3 {[%emt 0:01:23]} Kd7 {[%emt 0:00:12]} 36. Ke3 {[%emt 0:00:07]} Ke7 {[%emt 0:00:19]} 37. Kd3 {[%emt 0:00:04]} Kd7 {[%emt 0:00:12] An even fight not without its subleties.  Weighted Error Value: White=0.05 (flawless) /Black=0.03 (flawless)} 1/2-1/2